fUST/lending_fUST_20240824
["ID","MTS","AMOUNT","RATE_DAILY","PERIOD"]
[335762680,1724482238344,-501.10416567,0.00013698,2]
[335762682,1724482238354,-500.0,0.00013698,2]
[335762684,1724482238363,-500.0,0.00013698,2]
[335762686,1724482238373,-500.0,0.00013698,2]
[335762688,1724482238382,-500.0,0.00013698,2]
[335762690,1724482238392,-500.0,0.00013698,2]
[335762692,1724482238401,-530.41,0.00013698,2]
[335762693,1724482238411,-500.0,0.00013698,2]
[335762694,1724482238421,-1497.92,0.00013698,2]
[335762695,1724482238430,-500.0,0.00013698,2]
[335762696,1724482238441,-503.1174782,0.00013698,2]
[335762697,1724482238452,-500.0,0.00013698,2]
[335762698,1724482238461,-500.0,0.00013698,2]
[335762699,1724482238471,-500.0,0.00013698,2]
[335762700,1724482238480,-500.0,0.00013698,2]
[335762701,1724482238491,-500.0,0.00013698,2]
[335762702,1724482238500,-500.0,0.00013698,2]
[335762703,1724482238510,-500.0,0.00013698,2]
[335762704,1724482238524,-500.0,0.00013698,2]
[335762705,1724482238534,-500.0,0.00013698,2]
[335762707,1724482238544,-500.0,0.00013698,2]
[335762709,1724482238553,-500.0,0.00013698,2]
[335762711,1724482238563,-500.0,0.00013698,2]
[335762713,1724482238572,-500.0,0.00013698,2]
[335762716,1724482238581,-500.0,0.00013698,2]
[335762717,1724482238590,-566.38,0.00013698,2]
[335762720,1724482238600,-500.0,0.00013698,2]
[335762722,1724482238610,-500.0,0.00013698,2]
[335762724,1724482238619,-500.0,0.00013698,2]
[335762726,1724482238629,-500.0,0.00013698,2]
[335762728,1724482238638,-500.0,0.00013698,2]
[335762730,1724482238648,-1158.24,0.00013698,2]
[335762732,1724482238657,-500.0,0.00013698,2]
[335762734,1724482238667,-500.0,0.00013698,2]
[335762736,1724482238676,-500.0,0.00013698,2]
[335762738,1724482238686,-500.0,0.00013698,2]
[335762740,1724482238695,-500.0,0.00013698,2]
[335762742,1724482238705,-500.0,0.00013698,2]
[335762744,1724482238714,-500.0,0.00013698,2]
[335762746,1724482238723,-500.0,0.00013698,2]
[335762748,1724482238733,-423.16163908,0.00013698,2]
[335762750,1724482238742,-500.0,0.00013698,2]
[335762752,1724482238752,-500.0,0.00013698,2]
[335762754,1724482238761,-500.0,0.00013698,2]
[335762756,1724482238770,-500.0,0.00013698,2]
[335762758,1724482238779,-500.0,0.00013698,2]
[335762760,1724482238788,-500.0,0.00013698,2]
[335762762,1724482238798,-460.44216141,0.00013698,2]
[335762764,1724482238807,-500.0,0.00013698,2]
[335762766,1724482238817,-500.0,0.00013698,2]
[335762768,1724482238826,-500.0,0.00013698,2]
[335762770,1724482238835,-500.0,0.00013698,2]
[335762772,1724482238845,-500.0,0.00013698,2]
[335762774,1724482238854,-1182.83,0.00013698,2]
[335762777,1724482238864,-500.0,0.00013698,2]
[335762778,1724482238874,-500.0,0.00013698,2]
[335762781,1724482238884,-500.0,0.00013698,2]
[335762783,1724482238893,-208.28245632,0.00013698,2]
[335762785,1724482238903,-500.0,0.00013698,2]
[335762787,1724482238912,-508.51562826,0.00013698,2]
[335762789,1724482238921,-500.0,0.00013698,2]
[335762791,1724482238931,-500.0,0.00013698,2]
[335762793,1724482238940,-500.42521191,0.00013698,2]
[335762795,1724482238949,-1303.25,0.00013698,2]
[335762797,1724482238958,-500.0,0.00013698,2]
[335762799,1724482238967,-500.0,0.00013698,2]
[335762801,1724482238977,-500.0,0.00013698,2]
[335762802,1724482238987,-500.0,0.00013698,2]
[335762804,1724482238996,-500.0,0.00013698,2]
[335762806,1724482239006,-500.0,0.00013698,2]
[335762808,1724482239015,-500.0,0.00013698,2]
[335762810,1724482239024,-500.0,0.00013698,2]
[335762812,1724482239033,-1074.4,0.00013698,2]
[335762814,1724482239042,-688.79,0.00013698,2]
[335762816,1724482239053,-500.0,0.00013698,2]
[335762818,1724482239062,-500.0,0.00013698,2]
[335762820,1724482239072,-500.0,0.00013698,2]
[335762822,1724482239081,-500.0,0.00013698,2]
[335762824,1724482239090,-707.81,0.00013698,2]
[335762826,1724482239100,-500.0,0.00013698,2]
[335762828,1724482239109,-500.0,0.00013698,2]
[335762830,1724482239119,-500.0,0.00013698,2]
[335762833,1724482239128,-500.0,0.00013698,2]
[335762835,1724482239138,-704.2,0.00013698,2]
[335762837,1724482239148,-500.0,0.00013698,2]
[335762839,1724482239158,-500.87301071,0.00013698,2]
[335762841,1724482239167,-500.68041564,0.00013698,2]
[335762843,1724482239177,-500.0,0.00013698,2]
[335762845,1724482239186,-500.0,0.00013698,2]
[335762847,1724482239195,-516.71,0.00013698,2]
[335762849,1724482239205,-1394.76,0.00013698,2]
[335762851,1724482239214,-726.08,0.00013698,2]
[335762853,1724482239224,-500.0,0.00013698,2]
[335762855,1724482239233,-601.02,0.00013698,2]
[335762857,1724482239242,-411.68077222,0.00013698,2]
[335762859,1724482239251,-500.0,0.00013698,2]
[335762861,1724482239262,-3296.64,0.00013698,2]
[335762863,1724482239272,-844.04,0.00013698,2]
[335762865,1724482239281,-500.0,0.00013698,2]
[335762867,1724482239290,-572.82,0.00013698,2]
[335762869,1724482239300,-1025.39,0.00013698,2]
[335762871,1724482239310,-3001.05,0.00013698,2]
[335762873,1724482239319,-500.0,0.00013698,2]
[335762875,1724482239328,-500.0,0.00013698,2]
[335762877,1724482239338,-1457.55,0.00013698,2]
[335762879,1724482239347,-1183.75,0.00013698,2]
[335762881,1724482239356,-500.0,0.00013698,2]
[335762883,1724482239365,-500.0,0.00013698,2]
[335762885,1724482239375,-500.0,0.00013698,2]
[335762887,1724482239384,-502.68932578,0.00013698,2]
[335762890,1724482239394,-804.6,0.00013698,2]
[335762892,1724482239403,-500.0,0.00013698,2]
[335762894,1724482239413,-647.31,0.00013698,2]
[335762896,1724482239423,-892.0,0.00013698,2]
[335762898,1724482239433,-500.0,0.00013698,2]
[335762900,1724482239446,-605.47,0.00013698,2]
[335762902,1724482239455,-442.44977797,0.00013698,2]
[335762904,1724482239464,-581.33552731,0.00013698,2]
[335762906,1724482239473,-501.58336688,0.00013698,2]
[335762908,1724482239483,-575.29,0.00013698,2]
[335762910,1724482239492,-702.74,0.00013698,2]
[335762912,1724482239501,-2909.75,0.00013698,2]
[335762914,1724482239510,-500.0,0.00013698,2]
[335762916,1724482239521,-500.0,0.00013698,2]
[335762918,1724482239530,-823.45,0.00013698,2]
[335762920,1724482239539,-500.0,0.00013698,2]
[335762922,1724482239548,-1948.03,0.00013698,2]
[335762924,1724482239557,-500.0,0.00013698,2]
[335762926,1724482239566,-500.0,0.00013698,2]
[335762929,1724482239575,-500.0,0.00013698,2]
[335762931,1724482239585,-866.45,0.00013698,2]
[335762933,1724482239594,-500.0,0.00013698,2]
[335762935,1724482239603,-500.0,0.00013698,2]
[335762937,1724482239613,-500.0,0.00013698,2]
[335762939,1724482239623,-500.0,0.00013698,2]
[335762941,1724482239632,-500.0,0.00013698,2]
[335762943,1724482239641,-500.0,0.00013698,2]
[335762945,1724482239650,-567.45,0.00013698,2]
[335762947,1724482239659,-500.0,0.00013698,2]
[335762949,1724482239668,-500.0,0.00013698,2]
[335762951,1724482239678,-576.08,0.00013698,2]
[335762953,1724482239687,-500.0,0.00013698,2]
[335762955,1724482239696,-500.0,0.00013698,2]
[335762957,1724482239706,-500.0,0.00013698,2]
[335762959,1724482239720,-500.0,0.00013698,2]
[335762961,1724482239731,-500.0,0.00013698,2]
[335762964,1724482239741,-500.0,0.00013698,2]
[335762966,1724482239751,-500.0,0.00013698,2]
[335762969,1724482239761,-500.0,0.00013698,2]
[335762971,1724482239771,-500.0,0.00013698,2]
[335762974,1724482239780,-2248.72,0.00013698,2]
[335762977,1724482239789,-500.0,0.00013698,2]
[335762979,1724482239801,-500.0,0.00013698,2]
[335762981,1724482239812,-500.0,0.00013698,2]
[335762983,1724482239824,-500.0,0.00013698,2]
[335762986,1724482239835,-500.0,0.00013698,2]
[335762988,1724482239846,-500.0,0.00013698,2]
[335762990,1724482239858,-740.79,0.00013698,2]
[335762992,1724482239868,-741.25,0.00013698,2]
[335762995,1724482239877,-500.0,0.00013698,2]
[335762997,1724482239887,-500.0,0.00013698,2]
[335762999,1724482239897,-500.0,0.00013698,2]
[335763001,1724482239907,-500.0,0.00013698,2]
[335763003,1724482239917,-500.0,0.00013698,2]
[335763005,1724482239927,-500.0,0.00013698,2]
[335763007,1724482239936,-500.0,0.00013698,2]
[335763010,1724482239945,-500.0,0.00013698,2]
[335763013,1724482239955,-2255.51,0.00013698,2]
[335763016,1724482239964,-1328.89,0.00013698,2]
[335763019,1724482239974,-789.77,0.00013698,2]
[335763022,1724482239983,-563.37,0.00013698,2]
[335763024,1724482239992,-500.0,0.00013698,2]
[335763026,1724482240002,-864.33,0.00013698,2]
[335763028,1724482240011,-500.0,0.00013698,2]
[335763030,1724482240020,-500.0,0.00013698,2]
[335763032,1724482240029,-500.0,0.00013698,2]
[335763034,1724482240039,-766.22,0.00013698,2]
[335763036,1724482240048,-500.0,0.00013698,2]
[335763038,1724482240058,-503.69866884,0.00013698,2]
[335763040,1724482240067,-518.14,0.00013698,2]
[335763042,1724482240077,-844.96,0.00013698,2]
[335763044,1724482240087,-1935.6,0.00013698,2]
[335763046,1724482240097,-500.0,0.00013698,2]
[335763048,1724482240107,-500.0,0.00013698,2]
[335763050,1724482240116,-500.0,0.00013698,2]
[335763052,1724482240126,-500.0,0.00013698,2]
[335763054,1724482240136,-500.0,0.00013698,2]
[335763056,1724482240145,-500.0,0.00013698,2]
[335763058,1724482240155,-500.0,0.00013698,2]
[335763060,1724482240164,-500.0,0.00013698,2]
[335763062,1724482240175,-500.0,0.00013698,2]
[335763064,1724482240185,-500.0,0.00013698,2]
[335763066,1724482240194,-500.0,0.00013698,2]
[335763068,1724482240204,-500.0,0.00013698,2]
[335763070,1724482240214,-500.0,0.00013698,2]
[335763072,1724482240224,-500.0,0.00013698,2]
[335763074,1724482240233,-500.0,0.00013698,2]
[335763076,1724482240243,-500.0,0.00013698,2]
[335763078,1724482240252,-500.0,0.00013698,2]
[335763080,1724482240262,-500.0,0.00013698,2]
[335763082,1724482240271,-173.40454486,0.00013698,2]
[335763084,1724482240281,-500.0,0.00013698,2]
[335763086,1724482240291,-565.21,0.00013698,2]
[335763088,1724482240301,-500.0,0.00013698,2]
[335763090,1724482240310,-500.0,0.00013698,2]
[335763092,1724482240321,-500.0,0.00013698,2]
[335763094,1724482240331,-500.0,0.00013698,2]
[335763096,1724482240341,-500.71268256,0.00013698,2]
[335763098,1724482240351,-500.0,0.00013698,2]
[335763100,1724482240360,-2446.63,0.00013698,2]
[335763103,1724482240370,-896.86,0.00013698,2]
[335763105,1724482240380,-746.43,0.00013698,2]
[335763107,1724482240390,-500.0,0.00013698,2]
[335763109,1724482240400,-607.28,0.00013698,2]
[335763111,1724482240410,-1461.56,0.00013698,2]
[335763113,1724482240420,-617.09,0.00013698,2]
[335763115,1724482240430,-500.0,0.00013698,2]
[335763117,1724482240443,-500.0,0.00013698,2]
[335763119,1724482240452,-2761.86,0.00013698,2]
[335763121,1724482240462,-1755.95,0.00013698,2]
[335763123,1724482240471,-500.0,0.00013698,2]
[335763125,1724482240483,-500.0,0.00013698,2]
[335763127,1724482240492,-500.0,0.00013698,2]
[335763129,1724482240502,-2104.39,0.00013698,2]
[335763131,1724482240513,-743.35,0.00013698,2]
[335763133,1724482240524,-669.47,0.00013698,2]
[335763135,1724482240533,-535.43,0.00013698,2]
[335763137,1724482240543,-1016.56,0.00013698,2]
[335763139,1724482240553,-500.0,0.00013698,2]
[335763141,1724482240562,-500.0,0.00013698,2]
[335763143,1724482240571,-500.0,0.00013698,2]
[335763145,1724482240581,-501.67479403,0.00013698,2]
[335763147,1724482240590,-500.0,0.00013698,2]
[335763149,1724482240599,-416.90936469,0.00013698,2]
[335763151,1724482240609,-817.77,0.00013698,2]
[335763153,1724482240618,-500.0,0.00013698,2]
[335763155,1724482240627,-500.56863178,0.00013698,2]
[335763157,1724482240637,-500.0,0.00013698,2]
[335763159,1724482240646,-500.0,0.00013698,2]
[335763161,1724482240655,-500.0,0.00013698,2]
[335763163,1724482240665,-519.21642088,0.00013698,2]
[335763165,1724482240674,-1223.34,0.00013698,2]
[335763167,1724482240684,-500.0,0.00013698,2]
[335763169,1724482240693,-500.0,0.00013698,2]
[335763171,1724482240702,-756.43,0.00013698,2]
[335763173,1724482240712,-961.73,0.00013698,2]
[335763175,1724482240721,-987.1,0.00013698,2]
[335763177,1724482240730,-500.0,0.00013698,2]
[335763179,1724482240739,-500.0,0.00013698,2]
[335763180,1724482240748,-500.0,0.00013698,2]
[335763181,1724482240757,-2094.46,0.00013698,2]
[335763182,1724482240768,-510.53305999,0.00013698,2]
[335763183,1724482240777,-1068.44,0.00013698,2]
[335763184,1724482240786,-526.58,0.00013698,2]
[335763185,1724482240795,-500.0,0.00013698,2]
[335763186,1724482240805,-500.0,0.00013698,2]
[335763187,1724482240814,-500.0,0.00013698,2]
[335763188,1724482240823,-500.0,0.00013698,2]
[335763189,1724482240833,-172.52369908,0.00013698,2]
[335763190,1724482240842,-500.0,0.00013698,2]
[335763191,1724482240853,-829.9,0.00013698,2]
[335763193,1724482240864,-500.0,0.00013698,2]
[335763195,1724482240873,-500.0,0.00013698,2]
[335763197,1724482240882,-318.6461371,0.00013698,2]
[335763199,1724482240891,-964.75,0.00013698,2]
[335763201,1724482240900,-500.0,0.00013698,2]
[335763203,1724482240910,-500.0,0.00013698,2]
[335763205,1724482240919,-500.0,0.00013698,2]
[335763207,1724482240929,-500.0,0.00013698,2]
[335763209,1724482240938,-500.0,0.00013698,2]
[335763211,1724482240947,-500.0,0.00013698,2]
[335763213,1724482240958,-858.76,0.00013698,2]
[335763215,1724482240968,-1355.66,0.00013698,2]
[335763217,1724482240978,-500.0,0.00013698,2]
[335763219,1724482240989,-1266.04,0.00013698,2]
[335763221,1724482241000,-500.0,0.00013698,2]
[335763224,1724482241012,-500.0,0.00013698,2]
[335763226,1724482241022,-500.0,0.00013698,2]
[335763228,1724482241035,-500.0,0.00013698,2]
[335763230,1724482241045,-500.0,0.00013698,2]
[335763232,1724482241056,-239.35549867,0.00013698,2]
[335763234,1724482241066,-447.60060409,0.00013698,2]
[335763236,1724482241075,-500.0,0.00013698,2]
[335763238,1724482241084,-523.87,0.00013698,2]
[335763240,1724482241093,-1201.76,0.00013698,2]
[335763242,1724482241103,-754.42,0.00013698,2]
[335763244,1724482241113,-500.0,0.00013698,2]
[335763247,1724482241123,-657.63,0.00013698,2]
[335763249,1724482241134,-500.0,0.00013698,2]
[335763251,1724482241144,-500.0,0.00013698,2]
[335763253,1724482241154,-500.0,0.00013698,2]
[335763272,1724482241165,-927.54,0.00013698,2]
[335763275,1724482241344,-957.88,0.00013698,2]
[335763277,1724482241356,-500.0,0.00013698,2]
[335763279,1724482241365,-563.79847369,0.00013698,2]
[335763281,1724482241375,-500.0,0.00013698,2]
[335763283,1724482241385,-655.71,0.00013698,2]
[335763285,1724482241394,-500.0,0.00013698,2]
[335763287,1724482241406,-500.0,0.00013698,2]
[335763289,1724482241416,-500.0,0.00013698,2]
[335763292,1724482241426,-500.0,0.00013698,2]
[335763294,1724482241435,-1527.48,0.00013698,2]
[335763296,1724482241449,-3002.73,0.00013698,2]
[335763297,1724482241458,-500.0,0.00013698,2]
[335763299,1724482241467,-500.0,0.00013698,2]
[335763301,1724482241476,-846.49,0.00013698,2]
[335763304,1724482241487,-544.01843689,0.00013698,2]
[335763305,1724482241495,-500.0,0.00013698,2]
[335763307,1724482241505,-638.78,0.00013698,2]
[335763309,1724482241514,-500.0,0.00013698,2]
[335763311,1724482241526,-1571.86,0.00013698,2]
[335763313,1724482241536,-728.39,0.00013698,2]
[335763315,1724482241546,-500.0,0.00013698,2]
[335763317,1724482241556,-741.08,0.00013698,2]
[335763320,1724482241568,-500.42181622,0.00013698,2]
[335763322,1724482241578,-500.0,0.00013698,2]
[335763324,1724482241588,-1963.71,0.00013698,2]
[335763326,1724482241597,-791.63,0.00013698,2]
[335763328,1724482241608,-500.0,0.00013698,2]
[335763330,1724482241618,-500.0,0.00013698,2]
[335763332,1724482241627,-500.0,0.00013698,2]
[335763334,1724482241637,-500.0,0.00013698,2]
[335763336,1724482241649,-1366.53,0.00013698,2]
[335763338,1724482241659,-500.0,0.00013698,2]
[335763340,1724482241670,-500.0,0.00013698,2]
[335763343,1724482241680,-500.0,0.00013698,2]
[335763345,1724482241689,-500.0,0.00013698,2]
[335763347,1724482241699,-500.0,0.00013698,2]
[335763349,1724482241708,-1938.93,0.00013698,2]
[335763351,1724482241718,-500.0,0.00013698,2]
[335763353,1724482241727,-500.0,0.00013698,2]
[335763355,1724482241737,-500.0,0.00013698,2]
[335763357,1724482241747,-500.0,0.00013698,2]
[335763359,1724482241756,-690.15,0.00013698,2]
[335763361,1724482241766,-502.33681626,0.00013698,2]
[335763363,1724482241775,-500.0,0.00013698,2]
[335763365,1724482241785,-730.79,0.00013698,2]
[335763367,1724482241794,-500.0,0.00013698,2]
[335763369,1724482241804,-500.0,0.00013698,2]
[335763371,1724482241813,-671.17,0.00013698,2]
[335763373,1724482241822,-500.0,0.00013698,2]
[335763375,1724482241832,-1169.43,0.00013698,2]
[335763377,1724482241841,-854.55,0.00013698,2]
[335763379,1724482241850,-500.0,0.00013698,2]
[335763381,1724482241859,-500.0,0.00013698,2]
[335763382,1724482241868,-500.0,0.00013698,2]
[335763384,1724482241877,-503.18446818,0.00013698,2]
[335763386,1724482241886,-332.92760639,0.00013698,2]
[335763388,1724482241896,-917.43,0.00013698,2]
[335763390,1724482241905,-500.0,0.00013698,2]
[335763392,1724482241915,-500.0,0.00013698,2]
[335763394,1724482241924,-500.0,0.00013698,2]
[335763396,1724482241933,-500.0,0.00013698,2]
[335763399,1724482241943,-500.0,0.00013698,2]
[335763401,1724482241953,-500.0,0.00013698,2]
[335763403,1724482241965,-962.7,0.00013698,2]
[335763405,1724482241975,-508.45,0.00013698,2]
[335763407,1724482241985,-533.89,0.00013698,2]
[335763409,1724482241995,-871.92,0.00013698,2]
[335763411,1724482242005,-500.0,0.00013698,2]
[335763413,1724482242015,-885.32,0.00013698,2]
[335763415,1724482242025,-500.0,0.00013698,2]
[335763417,1724482242034,-607.35,0.00013698,2]
[335763419,1724482242044,-500.0,0.00013698,2]
[335763421,1724482242054,-500.0,0.00013698,2]
[335763423,1724482242063,-500.0,0.00013698,2]
[335763425,1724482242073,-931.08,0.00013698,2]
[335763427,1724482242082,-500.0,0.00013698,2]
[335763429,1724482242092,-630.44304182,0.00013698,2]
[335763431,1724482242101,-879.95,0.00013698,2]
[335763433,1724482242110,-500.0,0.00013698,2]
[335763435,1724482242120,-1135.01,0.00013698,2]
[335763437,1724482242130,-500.0,0.00013698,2]
[335763439,1724482242141,-533.64,0.00013698,2]
[335763441,1724482242151,-500.0,0.00013698,2]
[335763444,1724482242163,-820.08,0.00013698,2]
[335763446,1724482242172,-500.0,0.00013698,2]
[335763448,1724482242181,-648.53,0.00013698,2]
[335763450,1724482242191,-500.0,0.00013698,2]
[335763452,1724482242201,-500.0,0.00013698,2]
[335763454,1724482242211,-681.09,0.00013698,2]
[335763456,1724482242220,-500.0,0.00013698,2]
[335763458,1724482242231,-500.0,0.00013698,2]
[335763460,1724482242240,-500.0,0.00013698,2]
[335763462,1724482242251,-587.59,0.00013698,2]
[335763464,1724482242263,-500.0,0.00013698,2]
[335763466,1724482242272,-542.44,0.00013698,2]
[335763468,1724482242281,-150.0,0.00013698,2]
[335763471,1724482242291,-500.0,0.00013698,2]
[335763473,1724482242300,-1161.47,0.00013698,2]
[335763475,1724482242309,-500.0,0.00013698,2]
[335763477,1724482242319,-682.7,0.00013698,2]
[335763479,1724482242328,-1157.95,0.00013698,2]
[335763481,1724482242338,-500.0,0.00013698,2]
[335763483,1724482242347,-637.43,0.00013698,2]
[335763485,1724482242357,-855.65,0.00013698,2]
[335763487,1724482242366,-1625.35,0.00013698,2]
[335763489,1724482242375,-500.0,0.00013698,2]
[335763491,1724482242385,-638.67,0.00013698,2]
[335763493,1724482242394,-554.25,0.00013698,2]
[335763495,1724482242403,-500.0,0.00013698,2]
[335763497,1724482242413,-608.78,0.00013698,2]
[335763499,1724482242423,-500.0,0.00013698,2]
[335763501,1724482242434,-500.0,0.00013698,2]
[335763503,1724482242449,-945.97,0.00013698,2]
[335763505,1724482242459,-500.0,0.00013698,2]
[335763507,1724482242468,-500.0,0.00013698,2]
[335763509,1724482242477,-500.0,0.00013698,2]
[335763511,1724482242486,-538.13,0.00013698,2]
[335763513,1724482242496,-500.0,0.00013698,2]
[335763515,1724482242506,-500.0,0.00013698,2]
[335763517,1724482242515,-500.0,0.00013698,2]
[335763519,1724482242524,-500.0,0.00013698,2]
[335763522,1724482242535,-500.0,0.00013698,2]
[335763524,1724482242544,-500.0,0.00013698,2]
[335763526,1724482242554,-500.0,0.00013698,2]
[335763528,1724482242563,-500.0,0.00013698,2]
[335763530,1724482242573,-500.0,0.00013698,2]
[335763532,1724482242582,-500.0,0.00013698,2]
[335763534,1724482242591,-500.0,0.00013698,2]
[335763536,1724482242600,-831.41,0.00013698,2]
[335763538,1724482242610,-12738.12,0.00013698,2]
[335763540,1724482242619,-500.0,0.00013698,2]
[335763542,1724482242628,-500.0,0.00013698,2]
[335763544,1724482242638,-2071.27,0.00013698,2]
[335763546,1724482242647,-500.0,0.00013698,2]
[335763548,1724482242656,-1244.18,0.00013698,2]
[335763550,1724482242666,-298.95432508,0.00013698,2]
[335763552,1724482242677,-4227.07,0.00013698,2]
[335763554,1724482242686,-500.0,0.00013698,2]
[335763556,1724482242696,-551.53866785,0.00013698,2]
[335763558,1724482242706,-500.0,0.00013698,2]
[335763561,1724482242716,-1194.95,0.00013698,2]
[335763563,1724482242725,-500.0,0.00013698,2]
[335763565,1724482242734,-710.8,0.00013698,2]
[335763567,1724482242744,-3535.31,0.00013698,2]
[335763569,1724482242753,-1169.58,0.00013698,2]
[335763572,1724482242762,-500.0,0.00013698,2]
[335763576,1724482242772,-500.0,0.00013698,2]
[335763578,1724482242781,-6400.41,0.00013698,2]
[335763580,1724482242790,-500.0,0.00013698,2]
[335763582,1724482242800,-5908.11,0.00013698,2]
[335763584,1724482242810,-2041.26,0.00013698,2]
[335763586,1724482242819,-500.0,0.00013698,2]
[335763588,1724482242829,-500.0,0.00013698,2]
[335763590,1724482242838,-500.0,0.00013698,2]
[335763592,1724482242847,-1425.9,0.00013698,2]
[335763594,1724482242857,-500.0,0.00013698,2]
[335763596,1724482242867,-500.0,0.00013698,2]
[335763599,1724482242877,-500.0,0.00013698,2]
[335763602,1724482242886,-566.66,0.00013698,2]
[335763604,1724482242895,-665.17,0.00013698,2]
[335763605,1724482242904,-500.0,0.00013698,2]
[335763606,1724482242913,-500.0,0.00013698,2]
[335763607,1724482242922,-1175.46,0.00013698,2]
[335763608,1724482242932,-950.61,0.00013698,2]
[335763609,1724482242941,-733.07,0.00013698,2]
[335763611,1724482242951,-500.0,0.00013698,2]
[335763612,1724482242960,-1035.65,0.00013698,2]
[335763613,1724482242970,-1461.9,0.00013698,2]
[335763614,1724482242979,-1461.9,0.00013698,2]
[335763615,1724482242988,-1461.9,0.00013698,2]
[335763616,1724482242998,-1461.9,0.00013698,2]
[335763618,1724482243007,-1461.9,0.00013698,2]
[335763619,1724482243017,-1461.9,0.00013698,2]
[335763621,1724482243027,-1461.9,0.00013698,2]
[335763623,1724482243036,-1461.9,0.00013698,2]
[335763625,1724482243046,-2017.28,0.00013698,2]
[335763627,1724482243056,-500.0,0.00013698,2]
[335763629,1724482243066,-1461.9,0.00013698,2]
[335763631,1724482243075,-1461.9,0.00013698,2]
[335763633,1724482243085,-1461.9,0.00013698,2]
[335763635,1724482243095,-500.0,0.00013698,2]
[335763637,1724482243104,-500.0,0.00013698,2]
[335763639,1724482243114,-997.93,0.00013698,2]
[335763641,1724482243124,-599.44,0.00013698,2]
[335763643,1724482243133,-500.0,0.00013698,2]
[335763645,1724482243142,-500.0,0.00013698,2]
[335763647,1724482243152,-500.0,0.00013698,2]
[335763649,1724482243162,-500.0,0.00013698,2]
[335763651,1724482243171,-500.0,0.00013698,2]
[335763653,1724482243181,-937.17,0.00013698,2]
[335763655,1724482243191,-958.42,0.00013698,2]
[335763657,1724482243200,-867.0,0.00013698,2]
[335763660,1724482243212,-8249.59,0.00013698,2]
[335763662,1724482243223,-574.69944032,0.00013698,2]
[335763664,1724482243234,-500.0,0.00013698,2]
[335763666,1724482243244,-519.01160448,0.00013698,2]
[335763668,1724482243254,-500.0,0.00013698,2]
[335763672,1724482243263,-2405.34,0.00013698,2]
[335763676,1724482243273,-1679.64,0.00013698,2]
[335763679,1724482243282,-1115.09,0.00013698,2]
[335763681,1724482243292,-500.0,0.00013698,2]
[335763683,1724482243301,-500.0,0.00013698,2]
[335763685,1724482243311,-636.46,0.00013698,2]
[335763687,1724482243320,-646.13,0.00013698,2]
[335763689,1724482243330,-20048.66,0.00013698,2]
[335763691,1724482243340,-500.0,0.00013698,2]
[335763693,1724482243350,-500.0,0.00013698,2]
[335763695,1724482243359,-500.0,0.00013698,2]